[Event "Late-Titled-Tuesday-Blitz-December-26-2023"]
[Site "Chess.com"]
[Date "2023.12.26"]
[Round "10"]
[White "Mystery2007"]
[Black "gxbg2000"]
[Result "0-1"]
[WhiteElo "2534"]
[BlackElo "2047"]
[TimeControl "180+1"]
[EndTime "15:53:42 PST"]
[Termination "gxbg2000 won by resignation"]

1. Nf3 {[%clk 0:03:00.9]} 1... g6 {[%clk 0:02:59.6]} 2. d4 {[%clk 0:02:58.8]}
2... Bg7 {[%clk 0:02:59.5]} 3. g3 {[%clk 0:02:58.1]} 3... d6 {[%clk 0:02:59.6]}
4. Bg2 {[%clk 0:02:58.7]} 4... c6 {[%clk 0:02:59.9]} 5. O-O {[%clk 0:02:59.2]}
5... Bf6 {[%clk 0:03:00.2]} 6. c4 {[%clk 0:02:58.4]} 6... Bg7 {[%clk 0:03:01.1]}
7. Nc3 {[%clk 0:02:57.8]} 7... Nf6 {[%clk 0:03:01]} 8. Bg5 {[%clk 0:02:56.2]}
8... O-O {[%clk 0:03:00.8]} 9. Rc1 {[%clk 0:02:55]} 9... Bg4 {[%clk 0:03:00.9]}
10. Qd2 {[%clk 0:02:53.1]} 10... Bxf3 {[%clk 0:03:00.7]} 11. Bxf3 {[%clk
0:02:54]} 11... Nbd7 {[%clk 0:03:00.9]} 12. Rfe1 {[%clk 0:02:53.4]} 12... Re8
{[%clk 0:03:01.1]} 13. Bh6 {[%clk 0:02:53.3]} 13... Bh8 {[%clk 0:03:00.1]} 14.
Bg2 {[%clk 0:02:53.3]} 14... e5 {[%clk 0:02:57.8]} 15. dxe5 {[%clk 0:02:52.4]}
15... Nxe5 {[%clk 0:02:57.5]} 16. b3 {[%clk 0:02:51.8]} 16... Qe7 {[%clk
0:02:46.7]} 17. h3 {[%clk 0:02:50.4]} 17... Rad8 {[%clk 0:02:46.2]} 18. Rcd1
{[%clk 0:02:48.8]} 18... Bg7 {[%clk 0:02:39.4]} 19. Bg5 {[%clk 0:02:46.2]} 19...
Qe6 {[%clk 0:02:36]} 20. Qd4 {[%clk 0:02:35.9]} 20... c5 {[%clk 0:02:28]} 21.
Qd2 {[%clk 0:02:34]} 21... Rd7 {[%clk 0:02:19]} 22. Nd5 {[%clk 0:02:27.6]} 22...
Rc8 {[%clk 0:01:52.6]} 23. Qf4 {[%clk 0:02:17.9]} 23... Nxd5 {[%clk 0:01:47.6]}
24. Rxd5 {[%clk 0:02:12.1]} 24... f6 {[%clk 0:01:39.9]} 25. Bh4 {[%clk
0:02:03.2]} 25... g5 {[%clk 0:01:37.5]} 26. Bxg5 {[%clk 0:01:34.2]} 26... fxg5
{[%clk 0:01:36.1]} 27. Qxg5 {[%clk 0:01:35.1]} 27... Qf6 {[%clk 0:01:31.7]} 28.
Qh5 {[%clk 0:01:30.8]} 28... Rf8 {[%clk 0:01:26.1]} 29. f4 {[%clk 0:01:28.9]}
29... Ng6 {[%clk 0:01:21.1]} 30. Kh2 {[%clk 0:01:13]} 30... Re7 {[%clk
0:01:18.3]} 31. e4 {[%clk 0:01:12.3]} 31... Nxf4 {[%clk 0:00:59.3]} 32. gxf4
{[%clk 0:01:11.7]} 32... Qxf4+ {[%clk 0:00:59.3]} 33. Kh1 {[%clk 0:01:11.5]}
33... Be5 {[%clk 0:00:57.2]} 34. Qg4+ {[%clk 0:01:01.6]} 34... Qxg4 {[%clk
0:00:51.9]} 35. hxg4 {[%clk 0:01:02.5]} 35... Rf2 {[%clk 0:00:51.7]} 36. Rf1
{[%clk 0:01:00.9]} 36... Rxa2 {[%clk 0:00:49.6]} 37. Rd3 {[%clk 0:00:59.3]}
37... Rf7 {[%clk 0:00:47.9]} 38. Rdf3 {[%clk 0:00:48.1]} 38... Rxf3 {[%clk
0:00:47.5]} 39. Rxf3 {[%clk 0:00:47.9]} 39... Kg7 {[%clk 0:00:45.8]} 40. g5
{[%clk 0:00:42.6]} 40... a6 {[%clk 0:00:45.3]} 41. Bh3 {[%clk 0:00:41]} 41...
Kg6 {[%clk 0:00:42.9]} 42. Bc8 {[%clk 0:00:39.8]} 42... b5 {[%clk 0:00:41.2]}
43. cxb5 {[%clk 0:00:35]} 43... axb5 {[%clk 0:00:40.7]} 44. Bd7 {[%clk
0:00:35.9]} 44... b4 {[%clk 0:00:40.2]} 45. Bf5+ {[%clk 0:00:32.7]} 45... Kxg5
{[%clk 0:00:40.2]} 46. Bxh7 {[%clk 0:00:32.8]} 46... Rh2+ {[%clk 0:00:37]} 47.
Kg1 {[%clk 0:00:31.7]} 47... Rxh7 {[%clk 0:00:37.6]} 48. Rf5+ {[%clk 0:00:31.4]}
48... Kg4 {[%clk 0:00:37]} 49. Kg2 {[%clk 0:00:26.9]} 49... Rh2+ {[%clk
0:00:35.8]} 50. Kg1 {[%clk 0:00:26.7]} 50... Rb2 {[%clk 0:00:35.5]} 51. Rf7
{[%clk 0:00:20.8]} 51... Rxb3 {[%clk 0:00:35.2]} 52. Rf8 {[%clk 0:00:20.2]}
52... Bf4 {[%clk 0:00:33.8]} 53. Rg8+ {[%clk 0:00:20]} 53... Kf3 {[%clk
0:00:33.5]} 54. Kh1 {[%clk 0:00:16.8]} 54... Rb1+ {[%clk 0:00:31.3]} 55. Rg1
{[%clk 0:00:16.1]} 55... Rxg1+ {[%clk 0:00:31.9]} 56. Kxg1 {[%clk 0:00:17]}
56... b3 {[%clk 0:00:31.8]} 0-1

[Event "Late-Titled-Tuesday-Blitz-December-26-2023"]
[Site "Chess.com"]
[Date "2023.12.26"]
[Round "10"]
[White "MITerryble"]
[Black "MightyGMpretender"]
[Result "1-0"]
[WhiteElo "3024"]
[BlackElo "2752"]
[TimeControl "180+1"]
[EndTime "15:53:47 PST"]
[Termination "MITerryble won by resignation"]

1. e4 {[%clk 0:03:00.9]} 1... g6 {[%clk 0:03:00.5]} 2. d4 {[%clk 0:02:58.8]}
2... Bg7 {[%clk 0:03:01.1]} 3. Nf3 {[%clk 0:02:59.4]} 3... d6 {[%clk 0:03:01.2]}
4. c3 {[%clk 0:02:59.5]} 4... Nc6 {[%clk 0:02:59.2]} 5. Bb5 {[%clk 0:02:59]}
5... Bd7 {[%clk 0:02:58.7]} 6. O-O {[%clk 0:02:59.3]} 6... e5 {[%clk 0:02:59.3]}
7. dxe5 {[%clk 0:02:55.8]} 7... dxe5 {[%clk 0:02:56.8]} 8. Nbd2 {[%clk
0:02:54.6]} 8... Nf6 {[%clk 0:02:49.5]} 9. b3 {[%clk 0:02:54.5]} 9... O-O {[%clk
0:02:49.3]} 10. Qe2 {[%clk 0:02:54.9]} 10... Nh5 {[%clk 0:02:49.1]} 11. g3
{[%clk 0:02:54.9]} 11... Bg4 {[%clk 0:02:41.5]} 12. Nc4 {[%clk 0:02:34.7]} 12...
f5 {[%clk 0:02:30.4]} 13. Ne3 {[%clk 0:02:32.5]} 13... fxe4 {[%clk 0:02:14.3]}
14. Nxg4 {[%clk 0:02:27.3]} 14... exf3 {[%clk 0:02:14.6]} 15. Qe4 {[%clk
0:02:27.2]} 15... Qd7 {[%clk 0:02:01.3]} 16. h3 {[%clk 0:01:54.6]} 16... Qf5
{[%clk 0:01:55.4]} 17. Re1 {[%clk 0:01:51.2]} 17... Rad8 {[%clk 0:01:51.9]} 18.
Ba3 {[%clk 0:01:40.8]} 18... Rfe8 {[%clk 0:01:43.3]} 19. Bc4+ {[%clk 0:01:37.2]}
19... Kh8 {[%clk 0:01:42.4]} 20. Qxf5 {[%clk 0:01:34.5]} 20... gxf5 {[%clk
0:01:42.1]} 21. Bf7 {[%clk 0:01:35.4]} 21... fxg4 {[%clk 0:01:32.4]} 22. Bxh5
{[%clk 0:01:35.6]} 22... Re6 {[%clk 0:01:32.9]} 23. Bxg4 {[%clk 0:01:34]} 23...
Rf6 {[%clk 0:01:32.3]} 24. Re3 {[%clk 0:01:28.1]} 24... Bf8 {[%clk 0:01:31.7]}
25. Bxf8 {[%clk 0:01:24.4]} 25... Rdxf8 {[%clk 0:01:31.8]} 26. Rd1 {[%clk
0:01:22.4]} 26... R8f7 {[%clk 0:01:26.8]} 27. Rdd3 {[%clk 0:01:20.6]} 27... Rd6
{[%clk 0:01:18.3]} 28. Bxf3 {[%clk 0:01:15.4]} 28... Kg7 {[%clk 0:01:07.7]} 29.
Kg2 {[%clk 0:01:12.8]} 29... a5 {[%clk 0:00:57.9]} 30. Be4 {[%clk 0:01:02.8]}
30... Nd8 {[%clk 0:00:52.4]} 31. c4 {[%clk 0:00:52.4]} 31... Re7 {[%clk
0:00:48.3]} 32. Bd5 {[%clk 0:00:32.3]} 32... c6 {[%clk 0:00:47.6]} 33. Be4
{[%clk 0:00:30.2]} 33... Rxd3 {[%clk 0:00:47.8]} 34. Rxd3 {[%clk 0:00:31.1]}
34... Ne6 {[%clk 0:00:47.9]} 35. Rd6 {[%clk 0:00:29.6]} 35... Nc5 {[%clk
0:00:45.5]} 36. f3 {[%clk 0:00:26.7]} 36... Re8 {[%clk 0:00:41.4]} 37. h4 {[%clk
0:00:26.3]} 37... Ra8 {[%clk 0:00:35.3]} 38. h5 {[%clk 0:00:26]} 38... Kg8
{[%clk 0:00:17.1]} 39. Bf5 {[%clk 0:00:24.2]} 39... Kg7 {[%clk 0:00:16.2]} 40.
h6+ {[%clk 0:00:24.3]} 40... Kg8 {[%clk 0:00:16.7]} 41. g4 {[%clk 0:00:20.4]}
41... Rf8 {[%clk 0:00:16.8]} 42. a3 {[%clk 0:00:18.9]} 42... Nxb3 {[%clk
0:00:16.5]} 43. Rd7 {[%clk 0:00:19.4]} 43... Nc5 {[%clk 0:00:15.6]} 44. Rg7+
{[%clk 0:00:18.5]} 44... Kh8 {[%clk 0:00:16.3]} 45. Rxh7+ {[%clk 0:00:19.4]}
45... Kg8 {[%clk 0:00:16.8]} 46. Rg7+ {[%clk 0:00:19.2]} 46... Kh8 {[%clk
0:00:17]} 47. Rh7+ {[%clk 0:00:18.7]} 47... Kg8 {[%clk 0:00:17.1]} 48. Re7
{[%clk 0:00:19.4]} 48... Rf6 {[%clk 0:00:13.5]} 49. h7+ {[%clk 0:00:20]} 49...
Kh8 {[%clk 0:00:13.5]} 50. Re8+ {[%clk 0:00:20.2]} 1-0

[Event "Late-Titled-Tuesday-Blitz-December-26-2023"]
[Site "Chess.com"]
[Date "2023.12.26"]
[Round "10"]
[White "Jesusesmifuerza"]
[Black "jcmesafischer"]
[Result "1-0"]
[WhiteElo "2213"]
[BlackElo "2284"]
[TimeControl "180+1"]
[EndTime "15:53:52 PST"]
[Termination "Jesusesmifuerza won by checkmate"]

1. e4 {[%clk 0:02:59.1]} 1... c5 {[%clk 0:02:48.8]} 2. Nf3 {[%clk 0:02:59]} 2...
d6 {[%clk 0:02:31.9]} 3. d4 {[%clk 0:02:58.7]} 3... cxd4 {[%clk 0:02:32.8]} 4.
Nxd4 {[%clk 0:02:59.4]} 4... Nf6 {[%clk 0:01:55.4]} 5. Nc3 {[%clk 0:02:50.2]}
5... a6 {[%clk 0:01:49.4]} 6. Bc4 {[%clk 0:02:49.6]} 6... e6 {[%clk 0:01:47.6]}
7. O-O {[%clk 0:02:49.1]} 7... b5 {[%clk 0:01:25.2]} 8. Bb3 {[%clk 0:02:44.5]}
8... Be7 {[%clk 0:01:02.8]} 9. f3 {[%clk 0:02:42.5]} 9... O-O {[%clk 0:00:55.3]}
10. Be3 {[%clk 0:02:42.4]} 10... Qc7 {[%clk 0:00:16.2]} 11. Qd2 {[%clk
0:02:40.7]} 11... Nbd7 {[%clk 0:00:15.8]} 12. Rad1 {[%clk 0:02:37.4]} 12... Bb7
{[%clk 0:00:16.1]} 13. a3 {[%clk 0:02:37.2]} 13... Rfd8 {[%clk 0:00:16.4]} 14.
Rfe1 {[%clk 0:02:36.5]} 14... Rac8 {[%clk 0:00:17]} 15. Qf2 {[%clk 0:02:34]}
15... Nc5 {[%clk 0:00:15]} 16. h3 {[%clk 0:02:34.1]} 16... d5 {[%clk 0:00:14.3]}
17. exd5 {[%clk 0:02:32.6]} 17... Nxb3 {[%clk 0:00:14.8]} 18. Nxb3 {[%clk
0:02:32.3]} 18... Nxd5 {[%clk 0:00:14.9]} 19. Nxd5 {[%clk 0:02:31.2]} 19... Rxd5
{[%clk 0:00:14.1]} 20. c3 {[%clk 0:02:24.8]} 20... Rxd1 {[%clk 0:00:13.3]} 21.
Rxd1 {[%clk 0:02:25.7]} 21... Bd5 {[%clk 0:00:13.6]} 22. Nd4 {[%clk 0:02:18.4]}
22... Qb7 {[%clk 0:00:10.7]} 23. Rd2 {[%clk 0:02:14.4]} 23... a5 {[%clk
0:00:10.4]} 24. Nc2 {[%clk 0:02:12.3]} 24... Bb3 {[%clk 0:00:06.9]} 25. Nd4
{[%clk 0:02:11.4]} 25... Bc4 {[%clk 0:00:06.7]} 26. Nc2 {[%clk 0:02:11.1]} 26...
h6 {[%clk 0:00:06.4]} 27. g3 {[%clk 0:02:04.8]} 27... Rd8 {[%clk 0:00:03.7]} 28.
Rxd8+ {[%clk 0:01:58]} 28... Bxd8 {[%clk 0:00:04.6]} 29. Kg2 {[%clk 0:01:55.2]}
29... Bc7 {[%clk 0:00:04.7]} 30. Nd4 {[%clk 0:01:34.9]} 30... Bd5 {[%clk
0:00:04.9]} 31. h4 {[%clk 0:01:25.7]} 31... b4 {[%clk 0:00:04.8]} 32. axb4
{[%clk 0:01:25.6]} 32... axb4 {[%clk 0:00:05.7]} 33. Qe2 {[%clk 0:01:22.4]}
33... bxc3 {[%clk 0:00:05.7]} 34. bxc3 {[%clk 0:01:23.3]} 34... e5 {[%clk
0:00:05.7]} 35. Nf5 {[%clk 0:01:22.6]} 35... Kf8 {[%clk 0:00:05.5]} 36. Bc5+
{[%clk 0:01:21.1]} 36... Kg8 {[%clk 0:00:05.7]} 37. Ne7+ {[%clk 0:01:20.9]}
37... Kh7 {[%clk 0:00:06]} 38. Qd3+ {[%clk 0:01:20.4]} 38... e4 {[%clk
0:00:04.9]} 39. Qxd5 {[%clk 0:01:19.1]} 39... exf3+ {[%clk 0:00:05.2]} 40. Qxf3
{[%clk 0:01:18.7]} 40... Qb2+ {[%clk 0:00:05.3]} 41. Kh3 {[%clk 0:01:15.3]}
41... Qb1 {[%clk 0:00:05.7]} 42. Qf5+ {[%clk 0:01:14.3]} 42... Qxf5+ {[%clk
0:00:06.3]} 43. Nxf5 {[%clk 0:01:15.1]} 43... g6 {[%clk 0:00:06.8]} 44. Nd4
{[%clk 0:01:14.6]} 44... f5 {[%clk 0:00:07.2]} 45. Ne6 {[%clk 0:01:13.8]} 45...
Be5 {[%clk 0:00:07.5]} 46. Bd4 {[%clk 0:01:13.7]} 46... Bd6 {[%clk 0:00:07.9]}
47. c4 {[%clk 0:01:13.5]} 47... Kg8 {[%clk 0:00:08.2]} 48. c5 {[%clk 0:01:14.1]}
48... Be7 {[%clk 0:00:08.7]} 49. c6 {[%clk 0:01:14.4]} 49... Bd6 {[%clk
0:00:09.2]} 50. c7 {[%clk 0:01:14.6]} 50... Bxc7 {[%clk 0:00:08]} 51. Nxc7
{[%clk 0:01:15.5]} 51... Kf7 {[%clk 0:00:08.3]} 52. Nd5 {[%clk 0:01:15.9]} 52...
g5 {[%clk 0:00:08.4]} 53. hxg5 {[%clk 0:01:12.2]} 53... hxg5 {[%clk 0:00:09.3]}
54. Be3 {[%clk 0:01:12.6]} 54... Kg6 {[%clk 0:00:09.4]} 55. Ne7+ {[%clk
0:01:12.7]} 55... Kh5 {[%clk 0:00:08.5]} 56. Nxf5 {[%clk 0:01:06.3]} 56... Kg6
{[%clk 0:00:07.9]} 57. Nd4 {[%clk 0:01:05.5]} 57... Kh5 {[%clk 0:00:08.8]} 58.
g4+ {[%clk 0:01:05.1]} 58... Kg6 {[%clk 0:00:08.9]} 59. Nf3 {[%clk 0:01:05.2]}
59... Kf6 {[%clk 0:00:09.8]} 60. Bxg5+ {[%clk 0:01:05.7]} 60... Kg6 {[%clk
0:00:10.1]} 61. Kh4 {[%clk 0:01:06.6]} 61... Kh7 {[%clk 0:00:10.1]} 62. Kh5
{[%clk 0:01:06.8]} 62... Kg7 {[%clk 0:00:11]} 63. Bf4 {[%clk 0:01:07.3]} 63...
Kh7 {[%clk 0:00:11.9]} 64. g5 {[%clk 0:01:07.8]} 64... Kg7 {[%clk 0:00:12.7]}
65. Be5+ {[%clk 0:01:08.3]} 65... Kh7 {[%clk 0:00:13.6]} 66. g6+ {[%clk
0:01:08.6]} 66... Kg8 {[%clk 0:00:13.5]} 67. Ng5 {[%clk 0:01:08.5]} 67... Kf8
{[%clk 0:00:13.4]} 68. Ne6+ {[%clk 0:01:06.7]} 68... Kg8 {[%clk 0:00:14.3]} 69.
Nd4 {[%clk 0:01:06.7]} 69... Kf8 {[%clk 0:00:14.6]} 70. Nf5 {[%clk 0:01:07.1]}
70... Kg8 {[%clk 0:00:15.5]} 71. Nh6+ {[%clk 0:01:04.5]} 71... Kf8 {[%clk
0:00:16.4]} 72. g7+ {[%clk 0:01:04.9]} 72... Ke7 {[%clk 0:00:16.8]} 73. g8=Q
{[%clk 0:01:05.4]} 73... Kd7 {[%clk 0:00:17.4]} 74. Qd5+ {[%clk 0:01:05.3]}
74... Ke8 {[%clk 0:00:17]} 75. Qe6+ {[%clk 0:01:01.7]} 75... Kd8 {[%clk
0:00:15.4]} 76. Nf7# {[%clk 0:01:01.7]} 1-0

[Event "Late-Titled-Tuesday-Blitz-December-26-2023"]
[Site "Chess.com"]
[Date "2023.12.26"]
[Round "10"]
[White "a-z30"]
[Black "IgorBjelobrk"]
[Result "0-1"]
[WhiteElo "2520"]
[BlackElo "2660"]
[TimeControl "180+1"]
[EndTime "15:53:57 PST"]
[Termination "IgorBjelobrk won on time"]

1. c4 {[%clk 0:03:00.9]} 1... b6 {[%clk 0:02:56.7]} 2. Nf3 {[%clk 0:02:59.1]}
2... Bb7 {[%clk 0:02:53.6]} 3. Nc3 {[%clk 0:02:58.5]} 3... e6 {[%clk 0:02:44]}
4. e3 {[%clk 0:02:48.1]} 4... f5 {[%clk 0:02:36.2]} 5. Qc2 {[%clk 0:02:30.7]}
5... Nf6 {[%clk 0:02:35.3]} 6. Be2 {[%clk 0:02:29.5]} 6... Bb4 {[%clk
0:02:07.5]} 7. a3 {[%clk 0:02:26.1]} 7... Bxc3 {[%clk 0:02:07.7]} 8. Qxc3 {[%clk
0:02:27]} 8... O-O {[%clk 0:02:08.1]} 9. O-O {[%clk 0:02:18.4]} 9... a5 {[%clk
0:02:07.6]} 10. b3 {[%clk 0:02:17.7]} 10... d6 {[%clk 0:02:01.4]} 11. Bb2 {[%clk
0:02:04.8]} 11... Nbd7 {[%clk 0:02:00.6]} 12. b4 {[%clk 0:01:38.6]} 12... Qe7
{[%clk 0:01:58.7]} 13. Nd4 {[%clk 0:01:29.1]} 13... Ne4 {[%clk 0:01:23]} 14. Qc2
{[%clk 0:01:28.1]} 14... Ndf6 {[%clk 0:00:55.8]} 15. d3 {[%clk 0:01:10.7]} 15...
Ng5 {[%clk 0:00:55.8]} 16. Rfc1 {[%clk 0:00:58.8]} 16... c5 {[%clk 0:00:50.4]}
17. Nb5 {[%clk 0:00:50.4]} 17... e5 {[%clk 0:00:29.7]} 18. Bc3 {[%clk 0:00:24]}
18... Ne6 {[%clk 0:00:28.1]} 19. Qb2 {[%clk 0:00:19.3]} 19... f4 {[%clk
0:00:27.6]} 20. e4 {[%clk 0:00:14.3]} 20... g5 {[%clk 0:00:25.3]} 21. f3 {[%clk
0:00:08.4]} 21... a4 {[%clk 0:00:24.4]} 22. Bf1 {[%clk 0:00:08]} 22... h5 {[%clk
0:00:23.6]} 23. Kh1 {[%clk 0:00:07.9]} 23... Nd7 {[%clk 0:00:21.5]} 24. Qf2
{[%clk 0:00:07.4]} 24... Rf7 {[%clk 0:00:21.1]} 25. Be2 {[%clk 0:00:07.6]} 25...
Rg7 {[%clk 0:00:21.4]} 26. Rg1 {[%clk 0:00:07.5]} 26... g4 {[%clk 0:00:19.6]}
27. Qe1 {[%clk 0:00:05.4]} 27... g3 {[%clk 0:00:18.7]} 28. h3 {[%clk 0:00:04.8]}
28... Qh4 {[%clk 0:00:17.2]} 29. Bf1 {[%clk 0:00:04.7]} 29... Qe7 {[%clk
0:00:15.4]} 30. Ra2 {[%clk 0:00:05]} 30... Ndf8 {[%clk 0:00:13.9]} 31. Qd1
{[%clk 0:00:04.3]} 31... Nh7 {[%clk 0:00:13.4]} 32. Qe1 {[%clk 0:00:04.5]} 32...
Rd8 {[%clk 0:00:12.8]} 33. Qd1 {[%clk 0:00:04.8]} 33... Ra8 {[%clk 0:00:12.9]}
34. Qe1 {[%clk 0:00:04.8]} 34... Kf8 {[%clk 0:00:13.2]} 35. Qd1 {[%clk
0:00:05.1]} 35... Qd8 {[%clk 0:00:13.4]} 36. Rd2 {[%clk 0:00:05.3]} 36... Ke7
{[%clk 0:00:13.5]} 37. Qc2 {[%clk 0:00:05.4]} 37... Qf8 {[%clk 0:00:13.3]} 38.
Qd1 {[%clk 0:00:05.7]} 38... Qf6 {[%clk 0:00:13.6]} 39. Qc2 {[%clk 0:00:05.9]}
39... Qh4 {[%clk 0:00:13.8]} 40. Qd1 {[%clk 0:00:05.3]} 40... Nhg5 {[%clk
0:00:14.1]} 41. Qe2 {[%clk 0:00:04.5]} 41... Rag8 {[%clk 0:00:13.2]} 42. Nc7
{[%clk 0:00:04.1]} 42... Nxc7 {[%clk 0:00:13]} 43. bxc5 {[%clk 0:00:03.3]} 43...
bxc5 {[%clk 0:00:13.1]} 44. Rb2 {[%clk 0:00:04.2]} 44... Bc8 {[%clk 0:00:12.9]}
45. Rb6 {[%clk 0:00:03.7]} 45... Nxh3 {[%clk 0:00:12.9]} 46. gxh3 {[%clk
0:00:03.5]} 46... Bxh3 {[%clk 0:00:13.1]} 0-1

[Event "Late-Titled-Tuesday-Blitz-December-26-2023"]
[Site "Chess.com"]
[Date "2023.12.26"]
[Round "10"]
[White "Felix-Rose"]
[Black "ElenGajger"]
[Result "0-1"]
[WhiteElo "2247"]
[BlackElo "2434"]
[TimeControl "180+1"]
[EndTime "15:53:59 PST"]
[Termination "ElenGajger won on time"]

1. e4 {[%clk 0:02:59.9]} 1... c5 {[%clk 0:02:59.3]} 2. Nf3 {[%clk 0:02:59.9]}
2... g6 {[%clk 0:02:58.8]} 3. d4 {[%clk 0:02:59.6]} 3... cxd4 {[%clk 0:02:57.2]}
4. Nxd4 {[%clk 0:02:59.9]} 4... Bg7 {[%clk 0:02:57.6]} 5. c4 {[%clk 0:02:59.9]}
5... Nc6 {[%clk 0:02:57.7]} 6. Be3 {[%clk 0:03:00]} 6... Nf6 {[%clk 0:02:58.1]}
7. Nc3 {[%clk 0:03:00.1]} 7... O-O {[%clk 0:02:58.5]} 8. Be2 {[%clk 0:03:00.3]}
8... d6 {[%clk 0:02:58.9]} 9. f3 {[%clk 0:03:00.7]} 9... Bd7 {[%clk 0:02:59.3]}
10. Qd2 {[%clk 0:03:00.9]} 10... Nxd4 {[%clk 0:02:59.6]} 11. Bxd4 {[%clk
0:03:01.4]} 11... Bc6 {[%clk 0:03:00.2]} 12. h4 {[%clk 0:03:01.7]} 12... h5
{[%clk 0:02:51.5]} 13. g4 {[%clk 0:03:01.1]} 13... hxg4 {[%clk 0:02:49.4]} 14.
h5 {[%clk 0:03:01.6]} 14... Nxh5 {[%clk 0:02:47.1]} 15. Bxg7 {[%clk 0:02:59.3]}
15... Nxg7 {[%clk 0:02:39]} 16. Qh6 {[%clk 0:02:57.3]} 16... f5 {[%clk
0:02:27.8]} 17. Qxg6 {[%clk 0:02:53.4]} 17... Rf6 {[%clk 0:02:25.5]} 18. Qh7+
{[%clk 0:02:47.7]} 18... Kf7 {[%clk 0:02:23.8]} 19. fxg4 {[%clk 0:02:36.8]}
19... fxe4 {[%clk 0:02:11.6]} 20. g5 {[%clk 0:02:34.3]} 20... Rf3 {[%clk
0:01:58.4]} 21. Bxf3 {[%clk 0:01:56]} 21... exf3 {[%clk 0:01:59.3]} 22. O-O
{[%clk 0:01:51]} 22... Qb6+ {[%clk 0:01:53.9]} 23. Rf2 {[%clk 0:01:49.1]} 23...
Qe3 {[%clk 0:01:42.4]} 24. Qh6 {[%clk 0:01:37.8]} 24... Qe5 {[%clk 0:01:32.2]}
25. Nd5 {[%clk 0:01:19.3]} 25... Bxd5 {[%clk 0:01:15.8]} 26. cxd5 {[%clk
0:01:19.2]} 26... Qxd5 {[%clk 0:01:10.8]} 27. Rxf3+ {[%clk 0:01:04.7]} 27... Ke8
{[%clk 0:01:03.1]} 28. Raf1 {[%clk 0:00:58]} 28... Ne6 {[%clk 0:00:53.6]} 29.
Qg6+ {[%clk 0:00:41.3]} 29... Kd7 {[%clk 0:00:52]} 30. Qf5 {[%clk 0:00:41.8]}
30... Qd4+ {[%clk 0:00:49.7]} 31. R1f2 {[%clk 0:00:29.1]} 31... Rg8 {[%clk
0:00:44.1]} 32. Rg3 {[%clk 0:00:29.4]} 32... Rf8 {[%clk 0:00:43.4]} 33. Qc2
{[%clk 0:00:25.5]} 33... Nc5 {[%clk 0:00:35.8]} 34. Kf1 {[%clk 0:00:21.3]} 34...
Rxf2+ {[%clk 0:00:34.9]} 35. Qxf2 {[%clk 0:00:22.2]} 35... Qxf2+ {[%clk
0:00:35.4]} 36. Kxf2 {[%clk 0:00:22.5]} 36... Ne4+ {[%clk 0:00:36.3]} 37. Kf3
{[%clk 0:00:23.2]} 37... Nxg3 {[%clk 0:00:37.2]} 38. Kxg3 {[%clk 0:00:24]} 38...
Ke6 {[%clk 0:00:37.6]} 39. Kf4 {[%clk 0:00:24.1]} 39... Kf7 {[%clk 0:00:34.4]}
40. b4 {[%clk 0:00:22.4]} 40... e6 {[%clk 0:00:33.7]} 41. b5 {[%clk 0:00:22.1]}
41... b6 {[%clk 0:00:32.6]} 42. Kg4 {[%clk 0:00:20.4]} 42... Kg7 {[%clk
0:00:30.7]} 43. Kh5 {[%clk 0:00:19.6]} 43... e5 {[%clk 0:00:30.1]} 44. Kg4
{[%clk 0:00:20]} 44... Kg6 {[%clk 0:00:30.1]} 45. a4 {[%clk 0:00:19.9]} 45... d5
{[%clk 0:00:30.4]} 46. Kh4 {[%clk 0:00:20.4]} 46... d4 {[%clk 0:00:27.3]} 47.
Kg4 {[%clk 0:00:21]} 47... d3 {[%clk 0:00:27.6]} 48. Kf3 {[%clk 0:00:21.5]}
48... Kxg5 {[%clk 0:00:27.3]} 0-1